bitfinex/quotes_ETHUSD_20220213
["timestamp","ask_amount","ask_price","bid_price","bid_amount"]
[1644720271694,0.00954573,2921.7,2921.5,0.489]
[1644720272498,1.45606834,2921.6,2921.5,0.489]
[1644720276456,0.0095448,2921.7,2921.5,0.489]
[1644720276689,1.45606834,2921.6,2921.5,0.489]
[1644720277294,0.0036385,2922.1,2921.5,0.789]
[1644720277493,0.0095448,2921.7,2921.5,0.78748924]
[1644720277694,0.0095448,2921.7,2921.5,0.489]
[1644720278593,0.0036385,2922.1,2921.5,0.489]
[1644720278795,0.00954474,2921.7,2921.5,0.489]
[1644720279801,0.0036385,2922.1,2921.5,0.789]
[1644720279997,0.00954474,2921.7,2921.5,0.489]
[1644720280647,0.00954474,2921.7,2921.5,0.789]
[1644720281049,0.0036385,2922.1,2921.5,0.789]
[1644720281249,0.00954474,2921.7,2921.5,0.789]
[1644720282149,0.0036385,2922.1,2921.5,0.789]
[1644720282354,0.00608256,2921.7,2921.5,0.789]
[1644720282549,0.00608256,2921.7,2921.5,0.489]
[1644720282949,0.00608256,2921.7,2921.5,0.789]
[1644720283349,0.0036385,2922.1,2921.5,0.789]
[1644720283550,0.00954976,2921.7,2921.5,0.789]
[1644720283750,0.00954976,2921.7,2921.5,0.489]
[1644720284590,3.38225454,2922.1,2921.5,0.489]
[1644720284792,0.00954976,2921.7,2921.5,0.489]
[1644720285390,1.45607886,2921.6,2921.5,0.489]
[1644720285993,0.0036385,2922.1,2921.5,0.489]
[1644720285994,0.00954982,2921.7,2921.5,0.489]
[1644720286192,1.45607886,2921.6,2921.5,0.489]
[1644720287196,0.00954964,2921.7,2921.5,0.489]
[1644720287394,1.45607886,2921.6,2921.5,0.489]
[1644720288641,0.00954964,2921.7,2921.5,0.489]
[1644720289044,1.45607886,2921.6,2921.5,0.489]
[1644720289444,0.0036385,2921.9,2921.5,0.489]
[1644720289645,0.00954964,2921.7,2921.5,0.489]
[1644720290645,0.0036385,2922.1,2921.5,0.489]
[1644720290847,0.0095496,2921.7,2921.5,0.489]
[1644720291687,0.0036385,2922.1,2921.5,0.489]
[1644720291888,1.45966944,2922.1,2921.5,0.489]
[1644720292090,0.0095496,2921.7,2921.5,0.489]
[1644720293091,0.0036385,2922.1,2921.5,0.489]
[1644720293292,0.0095496,2921.7,2921.5,0.489]
[1644720294092,0.0036385,2922.1,2921.5,0.489]
[1644720294292,1.45966345,2922.1,2921.5,0.489]
[1644720294496,0.0095496,2921.7,2921.5,0.489]
[1644720294696,1.45602495,2921.6,2921.5,0.489]
[1644720294896,0.0095496,2921.7,2921.5,0.489]
[1644720295340,0.0036385,2922.1,2921.5,0.489]
[1644720295545,0.0095496,2921.7,2921.5,0.489]
[1644720296543,0.0036385,2922.1,2921.5,0.489]
[1644720296745,0.0095496,2921.7,2921.5,0.489]
[1644720297745,0.0036385,2922.1,2921.5,0.489]
[1644720297946,0.0095496,2921.7,2921.5,0.489]
[1644720298153,2.64643816,2921.6,2921.1,0.1711]
[1644720298349,4.80742434,2921.5,2920.7,0.1711]
[1644720298546,1.4560309,2921.4,2920.7,0.1711]
[1644720298747,1.4560309,2921.3,2920.7,0.1711]
[1644720298948,4.71529537,2922.0,2920.7,0.1711]
[1644720298949,0.1747385,2921.9,2920.7,0.1711]
[1644720299197,1.45620449,2921.8,2921.3,0.00107684]
[1644720300196,0.93405514,2921.6,2921.3,0.00107684]
[1644720300397,1.45620449,2921.5,2921.3,0.00107684]
[1644720301200,4.86270185,2921.5,2921.3,0.00107684]
[1644720301403,5.16433407,2921.4,2921.3,0.00107684]
[1644720302199,1.45620449,2921.4,2921.3,0.00107684]
[1644720302835,1.46575443,2921.5,2921.3,0.00107684]
[1644720303040,1.45620449,2921.4,2921.3,0.00107684]
[1644720304140,1.4547227,2921.4,2921.3,0.00107684]
[1644720304539,1.4547227,2921.4,2921.3,0.50550116]
[1644720304740,1.4547227,2921.4,2921.3,0.00107684]
[1644720305239,0.00954993,2921.5,2921.3,0.02093099]
[1644720306240,4.4226,2921.6,2921.3,0.02093099]
[1644720306444,0.00954987,2921.5,2921.3,0.02093099]
[1644720307310,4.2515,2921.6,2921.3,0.02093099]
[1644720307714,0.00954987,2921.5,2921.3,0.02093099]
[1644720308113,0.00954987,2921.5,2921.3,0.54357423]
[1644720308514,0.0036385,2922.0,2921.3,0.54357423]
[1644720308722,0.1747385,2922.0,2921.3,0.02093099]
[1644720308915,0.00956801,2921.5,2921.3,0.02093099]
[1644720309116,0.00956801,2921.5,2921.4,0.05480297]
[1644720309315,0.00956801,2921.5,2921.4,0.10960594]
[1644720309717,3.56096504,2922.0,2921.4,0.10960594]
[1644720309916,0.0036385,2922.0,2921.4,0.10960594]
[1644720310118,0.00956795,2921.6,2921.4,0.10960594]
[1644720310946,0.0036385,2922.0,2921.4,0.10960594]
[1644720311348,0.00956789,2921.6,2921.4,0.10960594]
[1644720312145,0.0036385,2922.0,2921.4,0.10960594]
[1644720312347,0.00956666,2921.6,2921.4,0.10960594]
[1644720313352,3.96609569,2922.0,2921.4,0.10960594]
[1644720313549,0.00956666,2921.6,2921.4,0.10960594]
[1644720314189,0.00956666,2921.6,2921.4,0.05480297]
[1644720314388,0.00956666,2921.6,2921.3,0.02093099]
[1644720314597,3.48130547,2922.0,2921.5,0.10960594]
[1644720314794,0.00956666,2921.6,2921.5,0.10960594]
[1644720315394,0.00956666,2921.6,2921.5,0.12922197]
[1644720315694,0.1747385,2922.0,2921.5,0.12922197]
[1644720316094,0.00956549,2921.7,2921.5,0.12922197]
[1644720317097,0.1747385,2922.0,2921.5,0.61822197]
[1644720317303,0.00956543,2921.7,2921.5,0.61822197]
[1644720317698,0.00956543,2921.7,2921.6,0.1711]
[1644720317945,0.00956543,2921.7,2921.6,0.6601]
[1644720318147,0.1747385,2922.0,2921.6,0.6601]
[1644720318545,0.00956537,2921.8,2921.6,0.6601]
[1644720319347,0.1747385,2922.0,2921.6,0.6601]
[1644720319547,0.1747385,2922.0,2921.7,1.71061]
[1644720319746,0.00956546,2921.8,2921.7,2.86592]
[1644720319947,0.00956546,2921.8,2921.7,3.65492]
[1644720320547,0.1747385,2922.0,2921.7,3.65492]
[1644720320747,0.1747385,2922.0,2921.8,0.3]
[1644720321050,0.0095654,2921.9,2921.8,0.3]
[1644720321247,0.0095654,2921.9,2921.8,0.789]
[1644720321692,0.0095654,2921.9,2921.8,0.9601]
[1644720321887,0.1711,2922.0,2921.8,0.9601]
[1644720322191,0.18066528,2922.0,2921.8,0.95888575]
[1644720322388,0.18066528,2922.0,2921.8,0.6601]
[1644720322998,0.1711,2922.0,2921.8,0.6601]
[1644720323196,0.18066517,2922.0,2921.8,0.489]
[1644720323596,0.17958988,2922.0,2921.8,0.489]
[1644720324097,0.17002471,2922.0,2921.8,0.489]
[1644720324303,0.17002471,2922.0,2921.8,0.789]
[1644720324495,0.17958988,2922.0,2921.8,0.789]
[1644720324898,0.17958988,2922.0,2921.9,0.05480297]
[1644720325196,0.17958988,2922.0,2921.9,0.59860594]
[1644720325444,0.17002471,2922.0,2921.9,0.59860594]
[1644720326859,0.17002471,2922.0,2921.9,1.45390594]
[1644720327049,0.00956511,2922.1,2922.0,4.0]
[1644720327249,0.00956511,2922.1,2922.0,5.089]
[1644720327448,0.00956511,2922.1,2922.0,6.089]
[1644720327853,6.73998791,2923.2,2922.1,4.25]
[1644720327854,4.55636918,2923.2,2922.1,4.25]
[1644720328054,0.00366361,2922.5,2922.3,0.85514]
[1644720328256,0.04406135,2923.1,2922.6,4.25]
[1644720328453,1.45545764,2923.0,2922.8,6.113]
[1644720328654,1.45545764,2923.0,2922.9,0.489]
[1644720328855,1.45545764,2923.0,2922.9,1.489]
[1644720329100,1.45540224,2923.0,2922.9,0.489]
[1644720329702,0.04039774,2923.1,2922.9,0.489]
[1644720329901,0.04039774,2923.1,2922.9,1.66]
[1644720330100,0.04039774,2923.1,2923.0,0.05480297]
[1644720330302,0.04039774,2923.1,2923.0,0.59860594]
[1644720330705,0.04039774,2923.1,2923.0,0.89860594]
[1644720332108,1.4957896,2923.1,2923.0,0.89860594]
[1644720332946,0.04039774,2923.1,2923.0,0.89860594]
[1644720333148,0.04039774,2923.1,2923.0,1.19860594]
[1644720334146,0.04039774,2923.1,2923.0,0.89860594]
[1644720334345,0.04039774,2923.1,2923.0,0.59860594]
[1644720335347,0.04039774,2923.1,2923.0,0.89860594]
[1644720336588,0.04039774,2923.1,2923.0,1.19860594]
[1644720339795,0.04039774,2923.1,2923.0,4.69860594]
[1644720340000,0.04039774,2923.1,2923.0,1.19860594]
[1644720340196,0.04039774,2923.1,2923.0,2.19860594]
[1644720340445,0.04039774,2923.1,2923.0,1.19860594]
[1644720343047,0.01010069,2923.2,2923.1,2.35]
[1644720343245,0.01010069,2923.2,2923.1,2.839]
[1644720343445,0.00366361,2923.8,2923.1,3.839]
[1644720343646,0.04039612,2923.7,2923.4,0.90966297]
[1644720343846,0.04039612,2923.7,2923.5,0.489]
[1644720344707,0.00366361,2923.8,2923.5,0.489]
[1644720344907,0.01009992,2923.7,2923.5,0.489]
[1644720345810,0.00366361,2923.8,2923.5,0.489]
[1644720346012,0.01009992,2923.7,2923.5,0.489]
[1644720346211,0.01009992,2923.7,2923.5,1.01241211]
[1644720346816,0.00415713,2924.2,2923.6,0.85479]
[1644720347014,0.171,2924.5,2923.7,0.789]
[1644720347015,1.45517275,2924.1,2923.7,0.789]
[1644720347216,1.45517275,2924.0,2923.7,1.089]
[1644720347415,0.00367116,2924.1,2923.7,1.089]
[1644720347619,1.45881516,2924.5,2923.7,1.089]
[1644720348446,0.01009887,2924.3,2924.0,0.01010023]
[1644720348650,0.01009887,2924.3,2924.1,2.19829]
[1644720349046,0.01009887,2924.3,2924.1,2.79829]
[1644720349351,0.00367116,2924.5,2924.2,0.10960594]
[1644720349648,1.45492441,2924.5,2924.3,0.489]
[1644720349850,1.45492441,2924.5,2924.3,1.34366]
[1644720350947,1.4650232,2924.5,2924.3,1.34366]
[1644720351148,0.01009879,2924.5,2924.3,1.34366]
[1644720351348,0.01009879,2924.5,2924.3,0.489]
[1644720351594,1.45492452,2924.4,2924.3,0.489]
[1644720351994,1.46502331,2924.5,2924.3,0.489]
[1644720352292,1.45492452,2924.4,2924.3,1.34365]
[1644720352692,0.01009879,2924.5,2924.3,1.34365]
[1644720353097,0.00367116,2924.8,2924.3,1.34365]
[1644720353298,1.31867295,2924.8,2924.3,1.64365]
[1644720353499,13.56253449,2925.1,2924.3,2.19825]
[1644720353699,13.56253449,2925.1,2924.3,1.34365]
[1644720353700,10.23430656,2925.1,2924.3,1.34365]
[1644720353900,10.23430656,2925.1,2924.2,0.10960594]
[1644720353901,0.82046918,2925.0,2924.2,0.10960594]
[1644720354101,5.64966918,2924.8,2924.2,0.10960594]
[1644720354300,4.76803473,2924.7,2923.7,0.489]
[1644720354499,4.76803473,2924.7,2924.5,0.05480297]
[1644720354700,4.2972026,2924.9,2924.5,0.05480297]
[1644720355351,3.64753342,2924.9,2924.5,0.05480297]
[1644720355547,4.2972026,2924.9,2924.5,0.05480297]
[1644720355743,0.9868716,2924.8,2924.5,0.05480297]
[1644720355948,3.38715165,2924.7,2924.5,0.05480297]
[1644720356549,1.63654078,2924.8,2924.5,0.05480297]
[1644720357051,3.37896155,2924.7,2924.5,0.05480297]
[1644720357656,0.01009851,2924.7,2924.5,0.05480297]
[1644720357851,1.63654078,2924.8,2924.5,0.05480297]
[1644720358055,0.01009851,2924.7,2924.5,0.05480297]
[1644720358951,1.63654078,2924.8,2924.5,0.05480297]
[1644720359196,0.01009851,2924.7,2924.5,0.05480297]
[1644720359598,0.01009851,2924.7,2924.2,0.01010038]
[1644720359599,0.65976769,2924.7,2924.2,0.01010038]
[1644720359897,0.65976769,2924.7,2924.6,0.10960594]
[1644720360298,0.6485684,2924.7,2924.6,0.10960594]
[1644720360498,0.67102825,2924.7,2924.6,0.10960594]
[1644720360705,3.33094608,2924.7,2924.6,0.10960594]
[1644720360899,0.02245985,2924.7,2924.6,0.10960594]
[1644720361999,0.67102825,2924.7,2924.6,0.10960594]
[1644720362851,8.55638364,2924.7,2924.6,0.10960594]
[1644720365251,8.57774223,2924.7,2924.6,0.10960594]
[1644720365856,9.44259485,2924.7,2924.6,0.10960594]
[1644720366255,10.17774223,2924.7,2923.8,0.1708]
[1644720366453,10.17774223,2924.7,2923.3,0.1708]
[1644720366454,5.64977691,2924.3,2923.3,0.1708]
[1644720366690,6.70175472,2924.3,2924.2,0.01010048]
[1644720366893,4.25,2924.2,2922.6,0.50685938]
[1644720367090,4.25,2924.2,2922.5,0.25]
[1644720367091,5.0,2923.5,2922.5,0.25]
[1644720367296,4.10043792,2923.4,2922.5,0.25]
[1644720367696,0.00367168,2923.3,2922.2,1.71041]
[1644720367895,0.88231385,2923.3,2922.2,1.71041]
[1644720368098,0.00367168,2923.3,2922.2,1.71041]
[1644720368298,0.00367168,2923.6,2922.2,2.31041]
[1644720368500,6.13622622,2924.1,2922.3,0.489]
[1644720368501,0.00367168,2923.7,2922.3,0.489]
[1644720368696,4.11964818,2924.0,2922.3,0.489]
[1644720368894,0.00367168,2923.8,2922.3,1.489]
[1644720369094,0.90798421,2923.8,2922.3,1.489]
[1644720369898,0.90798421,2923.8,2922.6,0.85514]
[1644720370096,0.90798421,2923.8,2922.7,0.171]
[1644720370097,3.32636186,2923.7,2922.7,0.171]
[1644720370350,0.00367168,2923.6,2922.7,0.171]
[1644720370539,0.00367168,2923.6,2922.7,0.66]
[1644720370742,0.90431253,2923.8,2922.7,0.66]
[1644720370743,0.00367168,2923.7,2922.7,0.66]
[1644720371146,0.00367168,2923.7,2922.7,0.489]
[1644720371342,0.00367168,2923.7,2923.1,0.0101015]
[1644720371942,0.65367917,2923.7,2923.1,0.0101015]
[1644720372140,0.00367168,2923.7,2923.1,0.0101015]
[1644720372341,0.00367168,2923.7,2922.7,0.489]
[1644720372543,0.65367917,2923.7,2923.3,0.01010121]
[1644720372741,0.65367917,2923.7,2922.7,0.489]
[1644720372742,0.02020241,2923.1,2922.7,0.489]
[1644720373348,1.45543288,2923.0,2922.7,0.489]
[1644720373652,0.02020241,2923.1,2922.8,3.15746549]
[1644720373848,0.02020241,2923.1,2922.8,3.4928958]
[1644720374093,0.02020241,2923.1,2922.9,1.34404]
[1644720374292,0.02020241,2923.1,2923.0,3.21208295]
[1644720374491,0.02020241,2923.1,2923.0,3.70108295]
[1644720376302,0.02020241,2923.1,2923.0,3.64975776]
[1644720377605,0.03683937,2923.7,2923.2,1.70955]
[1644720377854,1.45512705,2923.6,2923.4,6.113]
[1644720378052,1.45512705,2923.6,2923.5,4.14227586]
[1644720378247,1.45512705,2923.6,2923.5,4.61327586]
[1644720379555,0.03683937,2923.7,2923.5,4.61327586]
[1644720379752,0.03683937,2923.7,2923.6,3.14679878]
[1644720379951,1.4919019,2923.7,2923.6,3.63579878]
[1644720380253,1.45506253,2923.7,2923.6,3.63579878]
[1644720380652,1.45506253,2923.8,2923.6,3.93579878]
[1644720380953,1.45506253,2923.7,2923.6,4.0626401]
[1644720381153,1.45506253,2923.8,2923.6,4.0626401]
[1644720381355,1.45506253,2923.8,2923.7,3.14443084]
[1644720381603,1.45506253,2923.8,2923.7,3.63343084]
[1644720381800,1.45506253,2923.8,2923.7,0.489]
[1644720382000,0.00945312,2923.9,2923.7,0.489]
[1644720382203,1.45506253,2923.8,2923.7,0.489]
[1644720383202,2.1087417,2924.3,2923.7,0.489]
[1644720383403,0.00945312,2923.9,2923.7,0.489]
[1644720383603,1.45506253,2923.8,2923.7,0.789]
[1644720383810,0.00945312,2923.9,2923.7,10.573]
[1644720384008,0.03780681,2924.3,2923.8,6.113]
[1644720384009,0.00367168,2924.2,2923.8,6.113]
[1644720384211,0.00367168,2924.4,2924.1,6.413]
[1644720384407,3.04998795,2925.1,2924.1,6.413]
[1644720384408,0.00367168,2924.6,2924.2,2.19798]
[1644720384607,0.00367168,2924.7,2924.2,2.19798]
[1644720384806,0.00367168,2924.9,2924.2,2.19798]
[1644720385651,0.00367168,2924.9,2924.2,3.05249]
[1644720385850,0.00367168,2924.9,2924.3,3.2275124]
[1644720386048,0.00367168,2924.9,2924.4,0.489]
[1644720386855,0.00597864,2924.8,2924.4,0.489]
[1644720387851,0.00367168,2924.9,2924.4,0.489]
[1644720388051,0.01009851,2924.7,2924.4,0.489]
[1644720388450,0.01009851,2924.7,2924.4,1.00646422]
[1644720389094,0.00367168,2924.9,2924.4,0.489]
[1644720389299,0.01009858,2924.7,2924.4,0.489]
[1644720390200,0.00367168,2924.9,2924.4,0.489]
[1644720390402,0.01009858,2924.7,2924.4,0.489]
[1644720390603,0.02535471,2924.7,2924.4,0.489]
[1644720391001,0.02535471,2924.7,2923.9,1.70938]
[1644720391203,0.02535471,2924.7,2924.0,3.66161904]
[1644720391405,0.01525613,2924.7,2924.0,3.66161904]
[1644720391806,0.01009894,2924.4,2924.0,3.66161904]
[1644720392510,0.01009894,2924.4,2924.1,0.85468]
[1644720392707,0.01525613,2924.7,2924.2,0.489]
[1644720392954,0.01009908,2924.3,2924.2,0.489]
[1644720393553,0.01009908,2924.3,2924.2,1.34368]
[1644720393753,0.20821717,2924.1,2924.0,4.45296141]
[1644720394155,0.20821717,2924.1,2924.0,4.75296141]
[1644720394354,0.20821717,2924.1,2924.0,5.75296141]
[1644720394755,0.20821717,2924.1,2924.0,6.24192141]
[1644720395156,0.20821717,2924.1,2924.0,5.24192141]
[1644720396358,0.20821717,2924.1,2924.0,1.81441]
[1644720396603,0.20821717,2924.1,2924.0,4.97108281]
[1644720396899,0.20821717,2924.1,2924.0,4.80028281]
[1644720397806,0.20821717,2924.1,2924.0,5.80028281]
[1644720399606,0.01009929,2924.2,2924.1,2.25]
[1644720399811,0.01515641,2924.3,2924.1,7.3927859]
[1644720400008,0.01515641,2924.3,2924.2,3.17109156]
[1644720400213,0.01515641,2924.3,2924.2,3.66009156]
[1644720400447,0.01515641,2924.3,2924.2,4.66009156]
[1644720400848,0.04038913,2924.8,2924.2,1.489]
[1644720401046,11.4669,2925.2,2924.4,0.85456]
[1644720401247,0.04038996,2924.8,2924.5,0.489]
[1644720402253,11.4669,2925.2,2924.5,0.789]
[1644720402557,11.4669,2925.2,2924.5,0.489]
[1644720402558,0.01009844,2924.8,2924.5,0.489]
[1644720402751,0.01009844,2924.8,2924.5,0.789]
[1644720403353,0.01009844,2924.8,2924.6,3.12165042]
[1644720403551,11.2961,2925.2,2924.7,0.489]
[1644720403753,0.01009844,2924.8,2924.7,0.489]
[1644720404597,0.00367168,2924.9,2924.7,0.489]
[1644720404995,0.01376998,2924.9,2924.7,0.489]
[1644720405201,0.01376998,2924.9,2924.8,3.28613592]
[1644720405396,0.0100983,2924.9,2924.8,3.77513592]
[1644720405597,0.0100983,2924.9,2924.8,0.489]
[1644720405796,0.00367168,2925.4,2924.8,0.489]
[1644720405998,0.00367168,2925.4,2924.9,0.85449]
[1644720406198,0.00367168,2925.4,2924.9,1.34349]
[1644720406199,7.49009816,2925.0,2924.9,1.34349]
[1644720407097,7.48,2925.0,2924.9,1.34349]
[1644720407959,0.01009802,2925.1,2925.0,4.25]
[1644720408160,4.531,2926.2,2925.0,4.25]
[1644720408161,7.48,2926.4,2925.1,4.2]
[1644720408359,1.45423022,2926.3,2925.4,0.85422]
[1644720408557,1.45423022,2926.3,2925.5,0.489]
[1644720408558,0.04038545,2925.6,2925.5,0.489]
[1644720409557,1.13855167,2926.3,2925.5,0.489]
[1644720409761,0.00596398,2925.7,2925.5,0.489]
[1644720410466,0.00596398,2925.7,2925.6,3.15997688]
[1644720410663,1.13855167,2926.3,2925.6,3.64897688]
[1644720410863,0.0100971,2925.7,2925.6,3.64897688]
[1644720411259,0.0100971,2925.7,2925.6,0.489]
[1644720411909,0.0036737,2926.3,2925.6,0.489]
[1644720412108,0.0036737,2926.3,2925.6,3.67606014]
[1644720412109,0.01009703,2925.8,2925.6,3.67606014]
[1644720413113,0.0036737,2926.3,2925.6,3.67606014]
[1644720413309,0.01009696,2925.8,2925.6,3.67606014]
[1644720413911,0.01009696,2925.8,2925.6,0.489]
[1644720414110,0.01009696,2925.8,2925.5,0.31290804]
[1644720414310,0.0036737,2926.3,2925.6,0.489]
[1644720414511,0.01009696,2925.8,2925.6,0.489]
[1644720414712,0.01009696,2925.8,2925.6,0.789]
[1644720415111,0.01009696,2925.8,2925.6,0.489]
[1644720415548,0.0036737,2926.3,2925.6,0.489]
[1644720415753,0.01009696,2925.8,2925.6,0.489]
[1644720415948,0.01009696,2925.8,2925.7,0.02643813]
[1644720416148,0.01009696,2925.8,2925.7,0.51543813]
[1644720416653,0.0036737,2926.3,2925.7,0.51543813]
[1644720416949,0.01009689,2925.9,2925.8,4.02212163]
[1644720417149,0.01009689,2925.9,2925.8,4.03469667]
[1644720417348,0.01009689,2925.9,2925.8,1.34321]
[1644720417951,0.0036737,2926.3,2925.8,1.34321]
[1644720418151,0.01009674,2926.0,2925.8,1.34321]
[1644720418550,1.45417045,2925.9,2925.8,1.34321]
[1644720419400,0.01009674,2926.0,2925.8,1.34321]
[1644720419600,1.45422864,2925.9,2925.8,0.489]
[1644720420607,2.6388058,2925.9,2925.7,0.02643813]
[1644720420805,1.45422864,2925.8,2925.7,0.02643813]
[1644720426159,1.45422864,2925.8,2925.4,0.0095087]
[1644720426354,1.45790234,2925.8,2925.3,0.02274877]
[1644720426609,1.45790234,2925.8,2925.4,0.00954853]
[1644720427408,1.45790234,2925.8,2925.3,0.02274877]
[1644720427811,1.45790234,2925.8,2925.4,0.00954823]
[1644720427812,0.00954695,2925.7,2925.4,0.00954823]
[1644720428014,1.45422864,2925.6,2925.4,0.00954823]
[1644720428616,1.45422864,2925.6,2925.3,0.02274877]
[1644720428820,1.45422864,2925.5,2925.3,0.02274877]
[1644720429020,0.00954707,2925.6,2925.4,0.00954802]
[1644720429215,1.4543732,2925.5,2925.4,0.00954802]
[1644720429814,1.4543732,2925.5,2925.3,0.02274877]
[1644720430218,1.4543732,2925.4,2925.3,0.03229418]
[1644720430646,1.4543732,2925.5,2925.3,0.00954541]
[1644720430846,1.4543732,2925.4,2925.3,0.00954541]
[1644720431049,1.4543732,2925.4,2925.1,0.02266301]
[1644720431050,2.42456708,2925.4,2925.1,0.02266301]
[1644720431250,1.4543732,2925.3,2925.1,0.02266301]
[1644720432755,0.97386758,2925.4,2925.1,0.03220873]
[1644720432954,0.97019388,2925.4,2925.1,0.03220873]
[1644720433360,1.454531,2925.3,2925.1,0.03220873]
[1644720433559,8.5,2925.2,2923.5,0.0123067]
[1644720433760,8.5,2925.2,2923.4,1.70969]
[1644720433761,5.0,2924.6,2923.4,1.70969]
[1644720433963,5.0,2924.6,2923.1,0.1709]
[1644720433964,1.454531,2924.5,2923.1,0.1709]
[1644720434200,0.9095957,2924.0,2923.2,0.489]
[1644720434600,3.0742,2924.4,2923.2,0.489]
[1644720434803,3.0742,2924.4,2923.3,0.171]
[1644720434999,3.0742,2924.4,2923.5,0.00955505]
[1644720435200,0.1708,2924.6,2923.6,0.489]
[1644720435599,0.1708,2924.6,2923.6,0.789]
[1644720436008,0.1708,2924.6,2923.7,0.85475]
[1644720436205,0.1708,2924.6,2924.0,0.00955443]
[1644720436611,0.1708,2924.6,2924.1,0.489]
[1644720436807,12.2146,2925.1,2924.1,0.489]
[1644720437007,1.45464184,2925.0,2924.1,0.489]
[1644720437208,1.45464184,2925.0,2924.1,0.6598]
[1644720437408,1.45464184,2925.0,2924.5,0.00954629]
[1644720438356,1.45464184,2925.0,2924.1,0.489]
[1644720438557,1.45464184,2925.0,2924.6,0.00920299]
[1644720438857,1.45464184,2925.0,2924.6,0.49820299]
[1644720439053,1.45464184,2925.0,2924.6,0.34820299]
[1644720440958,0.01823785,2924.9,2924.6,0.34820299]
[1644720441357,1.45464184,2924.8,2924.6,0.34820299]
[1644720442405,0.01823785,2924.9,2924.6,0.34820299]
[1644720443404,1.45459859,2924.8,2924.6,0.34820299]
[1644720443606,1.40459859,2924.8,2924.6,0.34820299]
[1644720444205,0.01823785,2924.9,2924.6,0.34820299]
[1644720446260,0.01817969,2924.7,2924.6,0.34820299]
[1644720446660,0.01817969,2924.7,2924.5,0.00954515]
[1644720446861,0.01817969,2924.7,2924.2,0.489]
[1644720447064,0.01817969,2924.7,2924.5,0.00954494]
[1644720447859,0.01817969,2924.7,2924.2,0.489]
[1644720448263,0.01817969,2924.7,2924.5,0.00954704]
[1644720449101,0.01817969,2924.7,2924.2,0.489]
[1644720449305,0.01817969,2924.7,2924.5,0.00954704]
[1644720450109,8.8854,2925.1,2924.6,4.25]
[1644720450313,8.8854,2925.1,2924.7,0.489]
[1644720450314,0.1708,2925.1,2924.7,0.489]
[1644720450709,0.1708,2925.1,2924.8,0.17209129]
[1644720450912,0.1708,2925.1,2925.0,6.113]
[1644720451110,0.1708,2925.1,2925.0,6.602]
[1644720451312,0.1708,2925.1,2925.0,7.202]
[1644720451910,0.1708,2925.1,2925.0,8.05633]
[1644720452715,0.0036737,2925.6,2925.1,4.25]
[1644720452979,0.0036737,2925.6,2925.4,6.96712]
[1644720452980,0.03817586,2925.6,2925.4,6.96712]
[1644720453178,0.03817586,2925.6,2925.5,6.7728]
[1644720453375,5.6256,2926.7,2925.6,4.25]
[1644720453576,0.00368233,2926.6,2925.8,6.113]
[1644720453776,0.00368233,2926.6,2925.9,0.489]
[1644720454980,0.00368233,2926.6,2925.9,1.3431]
[1644720456180,0.00368233,2926.6,2925.9,1.86282661]
[1644720457610,4.44888233,2926.7,2926.0,2.85]
[1644720457808,0.00956436,2926.4,2926.1,0.489]
[1644720458411,1.7259716,2927.0,2926.1,0.489]
[1644720459512,0.64782354,2927.0,2926.1,0.489]
[1644720460855,11.2411,2927.1,2926.1,0.53639089]
[1644720461551,11.2411,2927.1,2926.3,0.85408]
[1644720461753,0.69677348,2926.2,2926.1,0.04739089]
[1644720462053,0.69677348,2926.2,2926.1,0.53639089]
[1644720462255,0.69677348,2926.2,2926.1,6.94939089]
[1644720462660,0.69677348,2926.2,2926.1,7.94939089]
[1644720463058,0.69677348,2926.2,2926.1,8.80345089]
[1644720463458,0.69677348,2926.2,2926.1,8.50345089]
[1644720463658,0.69677348,2926.2,2926.1,7.50345089]
[1644720464108,0.69677348,2926.2,2926.1,7.80345089]
[1644720465314,0.69677348,2926.2,2926.1,7.97425089]
[1644720466716,0.57791603,2926.2,2926.1,7.97425089]
[1644720466916,7.48,2926.8,2926.2,3.25]
[1644720467115,1.45380637,2926.7,2926.3,0.489]
[1644720467313,1.45380637,2926.7,2926.3,2.64296]
[1644720467514,1.45380637,2926.7,2926.4,0.3]
[1644720467720,1.45380637,2926.7,2926.6,0.85394]
[1644720467964,1.45380637,2926.7,2926.6,1.34294]
[1644720468160,1.45380637,2926.7,2926.6,1.64294]
[1644720468361,7.48,2926.8,2926.6,1.64294]
[1644720469362,0.0036833,2927.2,2926.6,2.64294]
[1644720469567,1.4535643,2927.3,2926.7,0.85382]
[1644720469762,1.4535643,2927.3,2927.0,0.85384]
[1644720469763,0.0036833,2927.3,2927.0,0.85384]
[1644720469962,12.245,2927.6,2927.1,3.339]
[1644720469963,4.1189,2927.6,2927.1,3.339]
[1644720470162,1.2318,2927.8,2927.1,3.639]
[1644720470361,7.48,2927.9,2927.1,3.939]
[1644720470564,7.48,2927.9,2927.1,1.089]
[1644720470565,1.45341728,2927.8,2927.1,1.089]
[1644720470959,1.45341728,2927.8,2927.1,4.2537956]
[1644720471160,0.00986164,2927.6,2927.1,5.1075356]
[1644720471364,0.00986164,2927.6,2927.3,20.04]
[1644720471609,0.21024066,2928.1,2927.6,4.25]
[1644720471807,0.21024066,2928.1,2927.7,0.489]
[1644720472007,0.1708,2928.1,2927.7,1.6596]
[1644720472210,10.31750772,2929.1,2928.0,0.8534]
[1644720472410,1.45304852,2929.0,2928.3,6.113]
[1644720472616,0.00369251,2928.9,2928.4,0.489]
[1644720472813,0.00369251,2928.9,2928.4,1.789]
[1644720473216,0.00369251,2928.9,2928.4,2.089]
[1644720473815,0.00369251,2928.9,2928.5,0.85326]
[1644720474015,0.00369251,2928.9,2928.6,0.489]
[1644720474214,0.00369251,2928.9,2928.6,0.789]
[1644720474414,0.00369251,2928.9,2928.7,0.85323]
[1644720474615,0.1706,2929.7,2928.8,5.73629289]
[1644720474817,1.45274465,2929.6,2928.8,6.03629289]
[1644720475015,1.45274465,2929.5,2928.9,1.85323]
[1644720475359,1.40274465,2929.4,2929.0,0.789]
[1644720475556,9.39960449,2930.0,2929.0,0.789]
[1644720475763,0.00952872,2929.3,2929.1,0.85312]
[1644720475960,0.00952872,2929.3,2929.2,0.489]